fUSD/lending_fUSD_20260503
["ID","MTS","AMOUNT","RATE_DAILY","PERIOD"]
[421480635,1777744240000,-500.0,0.00014876,2]
[421480636,1777744240000,-500.0,0.00014876,2]
[421480634,1777744240000,-500.0,0.00014876,2]
[421480632,1777744240000,-500.0,0.00014876,2]
[421480642,1777744240000,-546.5599265,0.00014876,2]
[421480648,1777744241000,-246479.94300727,0.0001488,2]
[421480674,1777744246000,-4575.89856606,0.0001488,2]
[421480675,1777744246000,-1081.46882499,0.0001488,2]
[421480673,1777744246000,-3076.60402889,0.0001488,2]
[421480677,1777744246000,-229.33742963,0.00014898,2]
[421480682,1777744246000,-555.30551623,0.000149,2]
[421480680,1777744246000,-2050.52793606,0.000149,2]
[421480676,1777744246000,-30985.51224158,0.0001488,2]
[421480681,1777744246000,-2473.04727682,0.000149,2]
[421480678,1777744246000,-229.33742961,0.00014899,2]
[421480679,1777744246000,-903.62256999,0.000149,2]
[421480700,1777744247000,-500.0,0.00014973,2]
[421480708,1777744247000,-151.0,0.00014991,2]
[421480719,1777744247000,-151.0,0.00014991,2]
[421480701,1777744247000,-150.02,0.00014985,2]
[421480706,1777744247000,-207.45455691,0.0001499,2]
[421480707,1777744247000,-200.0,0.00014991,2]
[421480704,1777744247000,-150.0,0.00014986,2]
[421480705,1777744247000,-150.0,0.00014986,2]
[421480709,1777744247000,-500.0,0.00014991,2]
[421480710,1777744247000,-151.0,0.00014991,2]
[421480720,1777744247000,-151.0,0.00014991,2]
[421480703,1777744247000,-150.0,0.00014986,2]
[421480696,1777744247000,-160.36987897,0.00014973,2]
[421480691,1777744247000,-500.0,0.00014973,2]
[421480698,1777744247000,-500.8580237,0.00014973,2]
[421480690,1777744247000,-500.55322451,0.00014973,2]
[421480693,1777744247000,-500.0,0.00014973,2]
[421480689,1777744247000,-500.0,0.00014973,2]
[421480695,1777744247000,-501.42645095,0.00014973,2]
[421480688,1777744247000,-171.96451102,0.000149,2]
[421480692,1777744247000,-500.0,0.00014973,2]
[421480687,1777744247000,-229.33742961,0.000149,2]
[421480694,1777744247000,-168.04005107,0.00014973,2]
[421480686,1777744247000,-6070.84806724,0.000149,2]
[421480685,1777744247000,-156.96739478,0.000149,2]
[421480684,1777744247000,-19600.0,0.000149,5]
[421480683,1777744247000,-667.80131737,0.000149,2]
[421480697,1777744247000,-500.0,0.00014973,2]
[421480712,1777744247000,-151.0,0.00014991,2]
[421480699,1777744247000,-500.0,0.00014973,2]
[421480711,1777744247000,-500.0,0.00014991,2]
[421480713,1777744247000,-500.0,0.00014991,2]
[421480756,1777744247000,-250.0,0.00014991,2]
[421480752,1777744247000,-500.0,0.00014991,2]
[421480751,1777744247000,-500.0,0.00014991,2]
[421480754,1777744247000,-346.70666381,0.00014991,2]
[421480750,1777744247000,-500.0,0.00014991,2]
[421480759,1777744247000,-483.95017269,0.00014992,2]
[421480748,1777744247000,-500.0,0.00014991,2]
[421480746,1777744247000,-500.0,0.00014991,2]
[421480744,1777744247000,-500.0,0.00014991,2]
[421480742,1777744247000,-151.0,0.00014991,2]
[421480730,1777744247000,-151.0,0.00014991,2]
[421480728,1777744247000,-500.0,0.00014991,2]
[421480732,1777744247000,-151.0,0.00014991,2]
[421480726,1777744247000,-151.0,0.00014991,2]
[421480702,1777744247000,-150.0,0.00014986,2]
[421480740,1777744247000,-500.0,0.00014991,2]
[421480716,1777744247000,-151.0,0.00014991,2]
[421480714,1777744247000,-151.0,0.00014991,2]
[421480717,1777744247000,-151.0,0.00014991,2]
[421480739,1777744247000,-500.0,0.00014991,2]
[421480722,1777744247000,-151.0,0.00014991,2]
[421480721,1777744247000,-500.0,0.00014991,2]
[421480715,1777744247000,-500.0,0.00014991,2]
[421480734,1777744247000,-500.0,0.00014991,2]
[421480718,1777744247000,-500.0,0.00014991,2]
[421480736,1777744247000,-211.75754912,0.00014991,2]
[421480738,1777744247000,-500.0,0.00014991,2]
[421480737,1777744247000,-151.0,0.00014991,2]
[421480724,1777744247000,-151.0,0.00014991,2]
[421480772,1777744447000,452.07,0.00027644,120]
[421480771,1777744447000,452.07,0.00027397,120]
[421480773,1777744448000,452.08,0.0002789,120]
[421480776,1777744802000,5000.0,0.000114,2]
[421480775,1777744802000,7666.83229887,0.000114,2]
[421480777,1777744803000,5000.0,0.000114,2]
[421480779,1777744803000,5000.0,0.000114,2]
[421480778,1777744803000,5000.0,0.000114,2]
[421480780,1777745191000,-1601.29107922,0.00013201,2]
[421480799,1777745431000,-150.25307724,0.00013488,2]
[421480810,1777745431000,-150.0,0.00013537,2]
[421480801,1777745431000,-150.94681551,0.00013488,2]
[421480804,1777745431000,-150.0,0.00013488,2]
[421480807,1777745431000,-166.66,0.0001349,2]
[421480803,1777745431000,-150.0,0.00013488,2]
[421480802,1777745431000,-150.0,0.00013488,2]
[421480806,1777745431000,-150.0,0.00013488,2]
[421480809,1777745431000,-646.48,0.00013518,2]
[421480808,1777745431000,-150.0,0.00013512,2]
[421480812,1777745431000,-150.0,0.00013586,2]
[421480816,1777745431000,-150.0,0.00013635,2]
[421480800,1777745431000,-150.0,0.00013488,2]
[421480805,1777745431000,-150.0,0.00013488,2]
[421480797,1777745431000,-150.0,0.00013488,2]
[421480786,1777745431000,-398.70892078,0.00013201,2]
[421480793,1777745431000,-737.42711121,0.00013441,2]
[421480782,1777745431000,-250.22945094,0.00013097,2]
[421480784,1777745431000,-394.73878257,0.00013166,2]
[421480785,1777745431000,-196.59,0.00013197,2]
[421480783,1777745431000,-1852.42,0.00013136,2]
[421480815,1777745431000,-150.0,0.00013624,2]
[421480787,1777745431000,-1200.0,0.00013343,2]
[421480795,1777745431000,-68.00886843,0.00013441,2]
[421480789,1777745431000,-300.0,0.0001344,2]
[421480788,1777745431000,-5000.0,0.00013344,2]
[421480794,1777745431000,-699.59791438,0.00013441,2]
[421480798,1777745431000,-150.0,0.00013488,2]
[421480792,1777745431000,-4013.98338271,0.00013441,2]
[421480796,1777745431000,-150.0,0.00013488,2]
[421480791,1777745431000,-986.01661729,0.00013441,2]
[421480790,1777745431000,-300.0,0.0001344,2]
[421480813,1777745431000,-150.0,0.00013611,2]
[421480824,1777745431000,-2088.41628585,0.00013689,2]
[421480820,1777745431000,-150.0,0.00013684,2]
[421480843,1777745431000,-174.33,0.00013699,2]
[421480842,1777745431000,-4999.99,0.00013699,2]
[421480832,1777745431000,-2360.62950549,0.00013689,2]
[421480834,1777745431000,-200.0,0.00013699,2]
[421480840,1777745431000,-1553.54,0.00013699,2]
[421480837,1777745431000,-150.99,0.00013699,2]
[421480835,1777745431000,-166.66,0.00013699,2]
[421480839,1777745431000,-3215.9,0.00013699,2]
[421480841,1777745431000,-519.49,0.00013699,2]
[421480845,1777745431000,-2771.71308211,0.00013699,2]
[421480844,1777745431000,-999.99,0.00013699,2]
[421480846,1777745431000,-235.24691789,0.00013699,2]
[421480848,1777745431000,-2669.98780068,0.00013699,2]
[421480847,1777745431000,-7330.00219932,0.00013699,2]
[421480838,1777745431000,-3789.1,0.00013699,2]
[421480819,1777745431000,-90.81437595,0.0001366,2]
[421480836,1777745431000,-3203.48,0.00013699,2]
[421480831,1777745431000,-345.00228922,0.00013689,2]
[421480821,1777745431000,-1522.39364718,0.00013689,2]
[421480818,1777745431000,-59.18562405,0.0001366,2]
[421480811,1777745431000,-150.0,0.00013561,2]
[421480817,1777745431000,-781.15,0.00013645,2]
[421480814,1777745431000,-178.06,0.00013622,2]
[421480822,1777745431000,-659.1457183,0.00013689,2]
[421480833,1777745431000,-4391.65526201,0.00013689,2]
[421480823,1777745431000,-952.0,0.00013689,2]
[421480829,1777745431000,-13115.57825408,0.00013689,2]
[421480827,1777745431000,-21376.50903918,0.00013689,2]
[421480830,1777745431000,-268.0434,0.00013689,2]
[421480828,1777745431000,-627.92076636,0.00013689,2]
[421480826,1777745431000,-540.58542602,0.00013689,2]
[421480825,1777745431000,-615.73022702,0.00013689,2]
[421480852,1777745432000,-6479.17393297,0.00013699,2]
[421480850,1777745432000,-299.23478,0.00013699,2]
[421480854,1777745432000,-388.019697,0.00013699,2]
[421480851,1777745432000,-507.104,0.00013699,2]
[421480849,1777745432000,-1897.24728703,0.00013699,2]
[421480853,1777745432000,-2814.55581483,0.00013699,2]
[421481125,1777745437000,-500.0,0.00013698,2]
[421481123,1777745437000,-500.0,0.00013698,2]
[421481124,1777745437000,-500.0,0.00013698,2]
[421481121,1777745437000,-113.56759038,0.00013698,2]
[421481119,1777745437000,-500.0,0.00013698,2]
[421481118,1777745437000,-500.0,0.00013698,2]
[421481120,1777745437000,-386.43240962,0.00013698,2]
[421481117,1777745437000,-500.0,0.00013698,2]
[421481122,1777745437000,-500.0,0.00013698,2]
[421481116,1777745437000,-500.0,0.00013698,2]
[421481114,1777745437000,-500.0,0.00013698,2]
[421481113,1777745437000,-500.0,0.00013698,2]
[421481127,1777745437000,-333.93434005,0.00013698,2]
[421481126,1777745437000,-500.0,0.00013698,2]
[421481115,1777745437000,-500.0,0.00013698,2]
[421481130,1777745437000,-375.09616028,0.00013698,2]
[421481128,1777745437000,-166.06565995,0.00013698,2]
[421481141,1777745437000,-500.0,0.00013698,2]
[421481137,1777745437000,-500.0,0.00013698,2]
[421481140,1777745437000,-500.0,0.00013698,2]
[421481136,1777745437000,-500.0,0.00013698,2]
[421481135,1777745437000,-500.0,0.00013698,2]
[421481142,1777745437000,-500.0,0.00013698,2]
[421481139,1777745437000,-500.0,0.00013698,2]
[421481133,1777745437000,-124.90383972,0.00013698,2]
[421481134,1777745437000,-500.0,0.00013698,2]
[421481131,1777745437000,-124.90383972,0.00013698,2]
[421481132,1777745437000,-375.09616028,0.00013698,2]
[421481138,1777745437000,-500.0,0.00013698,2]
[421481129,1777745437000,-500.0,0.00013698,2]
[421481195,1777745438000,-500.0,0.00013699,2]
[421481193,1777745438000,-500.0,0.00013699,2]
[421481189,1777745438000,-500.0,0.00013699,2]
[421481192,1777745438000,-500.0,0.00013699,2]
[421481188,1777745438000,-500.0,0.00013699,2]
[421481184,1777745438000,-500.0,0.00013699,2]
[421481180,1777745438000,-500.0,0.00013699,2]
[421481187,1777745438000,-500.0,0.00013699,2]
[421481194,1777745438000,-500.0,0.00013699,2]
[421481182,1777745438000,-500.0,0.00013699,2]
[421481190,1777745438000,-500.0,0.00013699,2]
[421481199,1777745438000,-500.0,0.00013699,2]
[421481196,1777745438000,-500.0,0.00013699,2]
[421481207,1777745438000,-500.0,0.00013699,2]
[421481202,1777745438000,-500.0,0.00013699,2]
[421481200,1777745438000,-500.0,0.00013699,2]
[421481197,1777745438000,-500.0,0.00013699,2]
[421481204,1777745438000,-500.0,0.00013699,2]
[421481201,1777745438000,-500.0,0.00013699,2]
[421481203,1777745438000,-500.0,0.00013699,2]
[421481216,1777745438000,-150.0,0.00013733,2]
[421481206,1777745438000,-500.0,0.00013699,2]
[421481205,1777745438000,-500.0,0.00013699,2]
[421481186,1777745438000,-500.0,0.00013699,2]
[421481198,1777745438000,-500.0,0.00013699,2]
[421481191,1777745438000,-500.0,0.00013699,2]
[421481152,1777745438000,-13985.05448817,0.00013699,2]
[421481178,1777745438000,-500.0,0.00013699,2]
[421481208,1777745438000,-500.0,0.00013699,2]
[421481146,1777745438000,-500.0,0.00013698,2]
[421481143,1777745438000,-500.0,0.00013698,2]
[421481144,1777745438000,-500.0,0.00013698,2]
[421481145,1777745438000,-373.01716445,0.00013698,2]
[421481153,1777745438000,-1624.96,0.00013699,2]
[421481149,1777745438000,-500.0,0.00013698,2]
[421481147,1777745438000,-500.0,0.00013698,2]
[421481148,1777745438000,-500.0,0.00013698,2]
[421481154,1777745438000,-500.0,0.00013699,2]
[421481155,1777745438000,-500.0,0.00013699,2]
[421481151,1777745438000,-500.0,0.00013698,2]
[421481150,1777745438000,-500.0,0.00013698,2]
[421481156,1777745438000,-500.0,0.00013699,2]
[421481158,1777745438000,-500.0,0.00013699,2]
[421481159,1777745438000,-500.0,0.00013699,2]
[421481160,1777745438000,-500.0,0.00013699,2]
[421481165,1777745438000,-500.0,0.00013699,2]
[421481170,1777745438000,-500.0,0.00013699,2]
[421481167,1777745438000,-500.0,0.00013699,2]
[421481157,1777745438000,-500.0,0.00013699,2]
[421481174,1777745438000,-500.0,0.00013699,2]
[421481172,1777745438000,-500.0,0.00013699,2]
[421481163,1777745438000,-500.0,0.00013699,2]
[421481161,1777745438000,-500.0,0.00013699,2]
[421481176,1777745438000,-500.0,0.00013699,2]
[421481210,1777745438000,-500.0,0.00013699,2]
[421481239,1777745438000,-150.0,0.00014028,2]
[421481211,1777745438000,-500.0,0.00013699,2]
[421481244,1777745438000,-166.66,0.0001411,2]
[421481246,1777745438000,-150.0,0.00014151,2]
[421481245,1777745438000,-150.0,0.00014126,2]
[421481243,1777745438000,-150.0,0.00014102,2]
[421481249,1777745438000,-150.0,0.000142,2]
[421481255,1777745438000,-150.0,0.00014249,2]
[421481253,1777745438000,-150.0,0.00014237,2]
[421481254,1777745438000,-166.66,0.00014247,2]
[421481248,1777745438000,-150.0,0.00014176,2]
[421481251,1777745438000,-150.0,0.00014237,2]
[421481247,1777745438000,-150.0,0.00014169,2]
[421481252,1777745438000,-150.0,0.00014237,2]
[421481256,1777745438000,-150.0,0.00014274,2]
[421481266,1777745438000,-250.22945094,0.00014404,2]
[421481267,1777745438000,-166.410876,0.00014405,7]
[421481257,1777745438000,-150.0,0.00014298,2]
[421481258,1777745438000,-150.0,0.00014305,2]
[421481265,1777745438000,-150.0,0.00014397,2]
[421481259,1777745438000,-166.410875,0.00014307,7]
[421481264,1777745438000,-166.66,0.00014384,2]
[421481262,1777745438000,-150.0,0.00014348,2]
[421481260,1777745438000,-150.0,0.00014316,2]
[421481263,1777745438000,-150.0,0.00014372,2]
[421481261,1777745438000,-150.0,0.00014323,2]
[421481214,1777745438000,-500.0,0.00013699,2]
[421481242,1777745438000,-150.0,0.00014077,2]
[421481233,1777745438000,-150.0,0.00013954,2]
[421481250,1777745438000,-150.0,0.00014225,2]
[421481222,1777745438000,-150.0,0.0001376,2]
[421481238,1777745438000,-150.0,0.00014004,2]
[421481209,1777745438000,-500.0,0.00013699,2]
[421481213,1777745438000,-500.0,0.00013699,2]
[421481215,1777745438000,-150.0,0.00013709,2]
[421481217,1777745438000,-189.81,0.00013735,2]
[421481219,1777745438000,-150.0,0.00013737,2]
[421481228,1777745438000,-150.0,0.00013856,2]
[421481218,1777745438000,-150.0,0.00013735,2]
[421481227,1777745438000,-150.0,0.00013851,2]
[421481221,1777745438000,-150.0,0.00013758,2]
[421481212,1777745438000,-500.0,0.00013699,2]
[421481224,1777745438000,-150.0,0.00013807,2]
[421481220,1777745438000,-250.22945094,0.00013751,2]
[421481231,1777745438000,-150.0,0.00013905,2]
[421481226,1777745438000,-166.66,0.00013836,2]
[421481225,1777745438000,-150.0,0.00013832,2]
[421481230,1777745438000,-150.0,0.00013896,2]
[421481241,1777745438000,-150.0,0.00014053,2]
[421481240,1777745438000,-150.0,0.00014033,2]
[421481229,1777745438000,-150.0,0.00013881,2]
[421481234,1777745438000,-166.66,0.00013973,2]
[421481223,1777745438000,-150.0,0.00013782,2]
[421481232,1777745438000,-150.0,0.0001393,2]
[421481237,1777745438000,-150.0,0.00013987,2]
[421481235,1777745438000,-150.0,0.00013979,2]
[421481236,1777745438000,-150.0,0.00013987,2]
[421481309,1777745439000,-13800.0,0.000148,5]
[421481306,1777745439000,-151.0,0.0001479,2]
[421481324,1777745439000,-151.0,0.000149,2]
[421481307,1777745439000,-151.0,0.0001479,2]
[421481308,1777745439000,-240.135656,0.0001479,2]
[421481305,1777745439000,-150.0,0.0001479,2]
[421481332,1777745439000,-17200.0,0.000149,5]
[421481302,1777745439000,-150.0,0.00014741,2]
[421481303,1777745439000,-14471.51256638,0.0001475,2]
[421481311,1777745439000,-150.0,0.00014839,2]
[421481312,1777745439000,-255.0,0.00014847,2]
[421481314,1777745439000,-151.0,0.0001485,2]
[421481301,1777745439000,-150.0,0.00014737,2]
[421481304,1777745439000,-150.0,0.00014765,2]
[421481327,1777745439000,-151.0,0.000149,2]
[421481328,1777745439000,-151.0,0.000149,2]
[421481316,1777745439000,-2000.0,0.00014852,2]
[421481315,1777745439000,-150.0,0.0001485,2]
[421481326,1777745439000,-151.0,0.000149,2]
[421481318,1777745439000,-2251.65069118,0.00014876,2]
[421481317,1777745439000,-150.0,0.00014863,2]
[421481320,1777745439000,-500.0,0.00014879,2]
[421481322,1777745439000,-533.64506465,0.000149,2]
[421481319,1777745439000,-500.0,0.00014879,2]
[421481323,1777745439000,-572.40112914,0.000149,2]
[421481321,1777745439000,-150.0,0.00014888,2]
[421481330,1777745439000,-151.0,0.000149,2]
[421481331,1777745439000,-230.63626,0.000149,2]
[421481299,1777745439000,-150.0,0.00014714,2]
[421481313,1777745439000,-14284.61224735,0.0001485,2]
[421481310,1777745439000,-150.0,0.00014814,2]
[421481273,1777745439000,-150.0,0.0001447,2]
[421481292,1777745439000,-150.0,0.00014642,2]
[421481333,1777745439000,-211.19284298,0.000149,2]
[421481269,1777745439000,-150.0,0.00014421,2]
[421481268,1777745439000,-250.0,0.00014407,2]
[421481282,1777745439000,-150.0,0.0001452,2]
[421481271,1777745439000,-150.0,0.00014446,2]
[421481283,1777745439000,-256.9084109,0.00014521,2]
[421481270,1777745439000,-150.0,0.00014441,2]
[421481272,1777745439000,-250.0,0.00014449,2]
[421481281,1777745439000,-3400.0,0.000145,5]
[421481279,1777745439000,-500.0,0.00014496,2]
[421481275,1777745439000,-150.0,0.00014487,2]
[421481277,1777745439000,-150.0,0.00014495,2]
[421481278,1777745439000,-200.0,0.00014496,2]
[421481274,1777745439000,-500.0,0.00014471,2]
[421481300,1777745439000,-150.0,0.00014716,2]
[421481276,1777745439000,-150.0,0.00014487,2]
[421481296,1777745439000,-302.43945452,0.00014699,2]
[421481285,1777745439000,-150.0,0.00014544,2]
[421481295,1777745439000,-150.0,0.00014691,2]
[421481297,1777745439000,-10000.0,0.000147,2]
[421481291,1777745439000,-150.0,0.00014618,2]
[421481288,1777745439000,-150.0,0.00014593,2]
[421481289,1777745439000,-5883.16721278,0.00014599,2]
[421481298,1777745439000,-10300.0,0.000147,5]
[421481284,1777745439000,-5000.0,0.00014521,2]
[421481286,1777745439000,-150.0,0.00014569,2]
[421481290,1777745439000,-6900.0,0.000146,5]
[421481287,1777745439000,-150.0,0.00014578,2]
[421481294,1777745439000,-1680.0,0.00014677,2]
[421481293,1777745439000,-150.0,0.00014667,2]
[421481280,1777745439000,-286.20317545,0.00014496,2]
[421481340,1777745439000,-94650.080433,0.00014929,2]
[421481335,1777745439000,-162.95027893,0.000149,2]
[421481337,1777745439000,-192.7365087,0.000149,2]
[421481369,1777745439000,-150.0,0.00014986,2]
[421481375,1777745439000,-500.0,0.00014991,2]
[421481370,1777745439000,-150.0,0.00014986,2]
[421481368,1777745439000,-150.0,0.00014986,2]
[421481373,1777745439000,-150.00000001,0.00014986,2]
[421481372,1777745439000,-150.0,0.00014986,2]
[421481378,1777745439000,-206.87440688,0.00014991,2]
[421481381,1777745439000,-508.604423,0.00014992,2]
[421481380,1777745439000,-508.604423,0.00014992,2]
[421481391,1777745439000,-151.0,0.00014992,2]
[421481383,1777745439000,-508.604423,0.00014992,2]
[421481390,1777745439000,-151.0,0.00014992,2]
[421481392,1777745439000,-151.0,0.00014992,2]
[421481382,1777745439000,-508.604423,0.00014992,2]
[421481387,1777745439000,-151.0,0.00014992,2]
[421481389,1777745439000,-151.0,0.00014992,2]
[421481386,1777745439000,-151.0,0.00014992,2]
[421481388,1777745439000,-151.0,0.00014992,2]
[421481385,1777745439000,-151.0,0.00014992,2]
[421481384,1777745439000,-151.0,0.00014992,2]
[421481393,1777745439000,-1000.0,0.00014992,2]
[421481396,1777745439000,-1108.99789053,0.00014999,5]
[421481397,1777745439000,-500.0,0.00014999,2]
[421481395,1777745439000,-1077.85484221,0.00014999,5]
[421481398,1777745439000,-500.0,0.00014999,2]
[421481394,1777745439000,-916.20465729,0.00014992,2]
[421481399,1777745439000,-500.0,0.00014999,2]
[421481401,1777745439000,-541.0,0.00014999,2]
[421481400,1777745439000,-500.0,0.00014999,2]
[421481376,1777745439000,-500.0,0.00014991,2]
[421481379,1777745439000,-500.0,0.00014991,2]
[421481377,1777745439000,-151.0,0.00014991,2]
[421481371,1777745439000,-254.74850454,0.00014986,2]
[421481334,1777745439000,-171.96451102,0.000149,2]
[421481341,1777745439000,-8809.6251128,0.00014929,2]
[421481338,1777745439000,-4047.23204482,0.000149,2]
[421481336,1777745439000,-726.7916997,0.000149,2]
[421481342,1777745439000,-2112.1302228,0.00014929,2]
[421481329,1777745439000,-151.0,0.000149,2]
[421481339,1777745439000,-150.0,0.00014913,2]
[421481344,1777745439000,-508.604423,0.00014929,2]
[421481374,1777745439000,-200.44978077,0.0001499,2]
[421481350,1777745439000,-151.0,0.00014929,2]
[421481343,1777745439000,-690.6140373,0.00014929,2]
[421481347,1777745439000,-508.604423,0.00014929,2]
[421481345,1777745439000,-508.604423,0.00014929,2]
[421481346,1777745439000,-508.604423,0.00014929,2]
[421481348,1777745439000,-37836.5546927,0.00014929,2]
[421481349,1777745439000,-151.0,0.00014929,2]
[421481362,1777745439000,-151.0,0.00014929,2]
[421481351,1777745439000,-151.0,0.00014929,2]
[421481367,1777745439000,-150.87380379,0.00014986,2]
[421481366,1777745439000,-150.0,0.00014986,2]
[421481361,1777745439000,-151.0,0.00014929,2]
[421481358,1777745439000,-151.0,0.00014929,2]
[421481360,1777745439000,-156.166511,0.00014929,2]
[421481356,1777745439000,-151.0,0.00014929,2]
[421481365,1777745439000,-150.0,0.00014962,2]
[421481363,1777745439000,-151.0,0.00014929,2]
[421481364,1777745439000,-150.0,0.00014937,2]
[421481353,1777745439000,-151.0,0.00014929,2]
[421481355,1777745439000,-151.0,0.00014929,2]
[421481354,1777745439000,-151.0,0.00014929,2]
[421481357,1777745439000,-151.0,0.00014929,2]
[421481411,1777745440000,-500.0,0.00014999,2]
[421481417,1777745440000,-500.0,0.00014999,2]
[421481414,1777745440000,-500.0,0.00014999,2]
[421481413,1777745440000,-500.0,0.00014999,2]
[421481409,1777745440000,-500.0,0.00014999,2]
[421481416,1777745440000,-500.0,0.00014999,2]
[421481415,1777745440000,-500.0,0.00014999,2]
[421481404,1777745440000,-500.0,0.00014999,2]
[421481406,1777745440000,-500.0,0.00014999,2]
[421481407,1777745440000,-500.0,0.00014999,2]
[421481403,1777745440000,-500.0,0.00014999,2]
[421481402,1777745440000,-500.0,0.00014999,2]
[421481405,1777745440000,-500.0,0.00014999,2]
[421481412,1777745440000,-500.0,0.00014999,2]
[421481408,1777745440000,-500.0,0.00014999,2]
[421481410,1777745440000,-500.0,0.00014999,2]
[421481423,1777745440000,-666.0,0.00014999,2]
[421481420,1777745440000,-250.0,0.00014999,2]
[421481434,1777745440000,-259.40309651,0.00015,2]
[421481431,1777745440000,-2315.0,0.00015,2]
[421481432,1777745440000,-330454.21819592,0.00015,2]
[421481429,1777745440000,-9599.14585426,0.00015,2]
[421481430,1777745440000,-488.52303721,0.00015,2]
[421481428,1777745440000,-8337.507,0.00015,2]
[421481426,1777745440000,-11679.07879086,0.00015,2]
[421481418,1777745440000,-500.0,0.00014999,2]
[421481425,1777745440000,-500.0,0.00014323,2]
[421481421,1777745440000,-300.0,0.00014999,2]
[421481424,1777745440000,-131864.32357382,0.00015,2]
[421481433,1777745440000,-59394.52814675,0.00015,2]
[421481419,1777745440000,-500.0,0.00014999,2]
[421481422,1777745440000,-300.0,0.00014999,2]
[421481427,1777745440000,-5194.36297898,0.00015,2]
[421481449,1777745443000,-177.92123102,0.00015,2]
[421481448,1777745443000,-4584.377,0.00015,2]
[421481455,1777745446000,-713.165178,0.00015,2]
[421481454,1777745446000,-113203.37297022,0.00015,2]
[421481459,1777745841000,161.83,7.836e-05,2]
[421481463,1777746561000,-250.0,0.00013,2]
[421481464,1777746561000,-150.72256056,0.00013,2]
[421481466,1777746561000,-502.0,0.00014438,2]
[421481467,1777746561000,-1000.0,0.000146,5]
[421481468,1777746561000,-354.27744777,0.000147,5]
[421481465,1777746561000,-150.0,0.00013488,2]
[421481470,1777746605000,787042.57928869,0.00012,2]
[421481482,1777746631000,-4316.76444638,0.00014895,2]
[421481478,1777746631000,-1954.81928515,0.000148,5]
[421481477,1777746631000,-167.53,0.00014778,2]
[421481475,1777746631000,-228.81324167,0.00014739,2]
[421481479,1777746631000,-506.276,0.000148,5]
[421481480,1777746631000,-638.90471485,0.000148,5]
[421481481,1777746631000,-452.1570509,0.00014895,2]
[421481473,1777746631000,-1745.72255223,0.000147,5]
[421481483,1777746631000,-525.92899424,0.00014895,2]
[421481486,1777746631000,-112.8419659,0.000149,2]
[421481489,1777746631000,-2190.63027339,0.000149,2]
[421481485,1777746631000,-377.78757338,0.000149,2]
[421481487,1777746631000,-808.50671811,0.000149,2]
[421481488,1777746631000,-1952.08151356,0.000149,2]
[421481490,1777746631000,-1820.7644437,0.000149,2]
[421481491,1777746631000,-564.17508534,0.000149,5]
[421481484,1777746631000,-150.0,0.00014899,2]
[421481492,1777746634000,1601.95981342,0.000119,3]
[421481503,1777746638000,-319.56578962,0.000149,5]
[421481502,1777746638000,-500.0,0.000149,5]
[421481778,1777746640000,-500.0,0.00014992,2]
[421481780,1777746640000,-500.0,0.00014992,2]
[421481790,1777746640000,-500.0,0.00014992,2]